bitfinex-derivatives/quotes_BTCF0:USTF0_20210706
["timestamp","ask_amount","ask_price","bid_price","bid_amount"]
[1625584910469,0.41218415,33977.0,33976.0,0.53815088]
[1625584910589,0.41218415,33977.0,33976.0,0.82170088]
[1625584910710,0.24057544,33977.0,33976.0,0.82170088]
[1625584911012,0.41218327,33977.0,33976.0,0.82170088]
[1625584911971,1.44331,33977.0,33976.0,0.82170088]
[1625584914197,2.474497,33977.0,33976.0,0.82170088]
[1625584915457,0.24057544,33977.0,33976.0,0.82170088]
[1625584915698,2.4754088,33977.0,33976.0,0.82170088]
[1625584916777,2.4754088,33977.0,33976.0,0.76470088]
[1625584917019,3.67947043,33977.0,33976.0,0.76470088]
[1625584917981,5.05719611,33977.0,33976.0,0.76470088]
[1625584918102,5.05719611,33977.0,33976.0,0.48115088]
[1625584919911,3.67947043,33977.0,33976.0,0.48115088]
[1625584920154,5.05741687,33977.0,33976.0,0.48115088]
[1625584922796,6.6090034,33977.0,33976.0,0.48115088]
[1625584923637,5.05741687,33977.0,33976.0,0.48115088]
[1625584924118,4.81684143,33977.0,33976.0,0.48115088]
[1625584924478,6.36962702,33977.0,33976.0,0.48115088]
[1625584924961,4.81684143,33977.0,33976.0,0.48115088]
[1625584925561,4.81684143,33977.0,33976.0,0.53815088]
[1625584926162,3.43889499,33977.0,33976.0,0.53815088]
[1625584926403,4.82034245,33977.0,33976.0,0.53815088]
[1625584926522,4.82034245,33977.0,33976.0,5.79555088]
[1625584928689,3.788947,33977.0,33976.0,5.79960542]
[1625584928808,0.64734245,33977.0,33976.0,6.04018086]
[1625584928928,2.41938178,33996.0,33976.0,6.04018086]
[1625584928929,1.38263617,33978.0,33976.0,6.04018086]
[1625584929048,0.88203617,33978.0,33976.0,6.04018086]
[1625584929170,2.41931088,33998.0,33976.0,6.04018086]
[1625584929172,0.08654929,33979.0,33976.0,6.04018086]
[1625584929287,0.02784929,33979.0,33977.0,0.00405401]
[1625584929408,0.13587417,33981.0,33977.0,0.00405401]
[1625584929830,1.55485653,33991.0,33977.0,0.00405401]
[1625584930311,0.01499516,33990.0,33977.0,0.00405401]
[1625584930432,0.01499516,33990.0,33978.0,0.0874]
[1625584930550,1.5551743,33992.0,33978.0,0.0874]
[1625584930731,1.55517471,33991.0,33990.0,0.24057544]
[1625584930851,1.49817471,33991.0,33990.0,0.24057544]
[1625584930971,1.49817471,33991.0,33990.0,0.55835544]
[1625584931092,1.72795225,33997.0,33990.0,0.55835544]
[1625584931451,0.01500163,33996.0,33990.0,0.55835544]
[1625584932293,0.01500148,33997.0,33990.0,0.55835544]
[1625584932772,0.01500148,33997.0,33996.0,0.24057544]
[1625584936680,1.73990513,33997.0,33996.0,0.24057544]
[1625584937222,1.73990513,33997.0,33992.0,0.24057544]
[1625584937460,2.02018513,33997.0,33992.0,0.24057544]
[1625584937582,1.7246413,33994.0,33989.0,0.24057544]
[1625584937823,1.72472016,33993.0,33989.0,0.24057544]
[1625584937943,1.73972306,33993.0,33989.0,0.24057544]
[1625584938074,1.72475781,33992.0,33989.0,0.24057544]
[1625584938184,1.73976112,33992.0,33989.0,0.24057544]
[1625584938305,1.99122576,33990.0,33989.0,0.24057544]
[1625584938426,1.99122576,33990.0,33964.0,3.8353]
[1625584938664,1.72471791,33988.0,33964.0,3.8353]
[1625584938784,5.50547544,33984.0,33983.0,0.24057544]
[1625584939264,5.50547544,33984.0,33979.0,0.24057544]
[1625584939385,5.52048015,33984.0,33979.0,0.24057544]
[1625584939746,0.3084849,33983.0,33979.0,0.24057544]
[1625584940284,0.29348,33983.0,33979.0,0.24057544]
[1625584940886,0.24057544,33980.0,33979.0,0.24057544]
[1625584943956,0.24057544,33980.0,33976.0,0.24057544]
[1625584944194,1.38004448,33977.0,33976.0,0.24057544]
[1625584944435,1.3798517,33978.0,33976.0,0.24057544]
[1625584946419,0.48115088,33980.0,33976.0,0.24057544]
[1625584946420,1.3798413,33979.0,33976.0,0.24057544]
[1625584946659,1.3798413,33979.0,33976.0,0.47571544]
[1625584946900,0.48115088,33980.0,33978.0,0.24057544]
[1625584947143,0.24057544,33980.0,33978.0,0.24057544]
[1625584947626,0.24057544,33980.0,33979.0,4.9863]
[1625584954651,0.24057544,33980.0,33979.0,4.99035522]
[1625584955975,0.24057544,33980.0,33979.0,4.9863]
[1625584956636,0.24057544,33980.0,33979.0,4.99035526]
[1625584957117,0.24057544,33980.0,33979.0,4.9863]
[1625584957779,1.45006825,33980.0,33979.0,4.9863]
[1625584958980,2.4872457,33980.0,33979.0,4.9863]
[1625584959521,2.4872457,33980.0,33979.0,4.9903549]
[1625584960186,1.27775289,33980.0,33979.0,4.9903549]
[1625584960486,2.48829608,33980.0,33979.0,4.9903549]
[1625584960726,2.24772064,33980.0,33979.0,4.9903549]
[1625584960968,1.03717745,33980.0,33979.0,5.23093034]
[1625584961266,1.21047585,33983.0,33979.0,5.23093034]
[1625584961506,1.21040315,33984.0,33979.0,5.23093034]
[1625584961625,1.21040315,33984.0,33980.0,0.00405403]
[1625584961746,1.21039356,33985.0,33980.0,0.00405403]
[1625584962527,0.24057544,33994.0,33980.0,0.00405403]
[1625584962528,1.21081144,33984.0,33980.0,0.00405403]
[1625584962888,1.21081144,33984.0,33983.0,0.48115088]
[1625584963008,1.21081144,33984.0,33983.0,0.71084088]
[1625584963310,1.21081144,33984.0,33983.0,0.71489486]
[1625584964273,1.21070532,33985.0,33983.0,0.71489486]
[1625584964512,1.21084036,33984.0,33983.0,0.71489486]
[1625584964756,1.21084036,33984.0,33983.0,0.71084088]
[1625584964994,1.21084036,33984.0,33983.0,0.7148949]
[1625584965534,1.21084036,33984.0,33983.0,0.4852049]
[1625584965713,1.51194036,33984.0,33983.0,0.4852049]
[1625584966315,2.89595747,33984.0,33983.0,0.4852049]
[1625584966918,3.37710835,33984.0,33983.0,0.48115088]
[1625584967279,4.93437011,33984.0,33983.0,0.48115088]
[1625584968779,4.9493644,33984.0,33983.0,0.48115088]
[1625584976945,4.9493644,33984.0,33979.0,0.24057544]
[1625584977190,0.01499556,33983.0,33980.0,0.00405596]
[1625584977310,1.55819503,33981.0,33980.0,0.00405596]
[1625584977546,1.55819503,33981.0,33976.0,0.33862507]
[1625584977726,1.573189,33981.0,33976.0,0.33862507]
[1625584977848,3.6556,33977.0,33976.0,0.33862507]
[1625584977969,8.07273518,33977.0,33973.0,0.24057544]
[1625584978213,2.59748014,33974.0,33973.0,0.24057544]
[1625584978573,2.59748014,33974.0,33973.0,0.2446317]
[1625584978991,3.07863102,33974.0,33973.0,0.2446317]
[1625584979712,3.07863102,33974.0,33973.0,0.24057544]
[1625584979894,3.07863102,33974.0,33973.0,0.24463168]
[1625584980434,3.07863102,33974.0,33973.0,0.24057544]
[1625584980554,3.07863102,33974.0,33973.0,5.31697544]
[1625584981034,3.07863102,33974.0,33973.0,5.32103102]
[1625584981155,0.48115088,33974.0,33973.0,5.32103102]
[1625584981515,0.24057544,33974.0,33973.0,5.32103102]
[1625584982117,0.24057544,33974.0,33973.0,6.50755419]
[1625584982296,1.21183887,33977.0,33973.0,6.50755419]
[1625584982418,1.45247172,33978.0,33974.0,0.089]
[1625584982536,1.45247172,33978.0,33974.0,0.09305467]
[1625584982657,1.45247172,33978.0,33974.0,1.27915794]
[1625584982836,1.45247172,33978.0,33975.0,0.00405464]
[1625584983078,1.45247172,33978.0,33977.0,0.13630164]
[1625584983377,1.45247172,33978.0,33977.0,0.14035624]
[1625584984337,1.45247172,33978.0,33977.0,0.13630164]
[1625584984577,1.45247172,33978.0,33977.0,0.14035618]
[1625584984877,1.21189628,33978.0,33977.0,0.14035618]
[1625584985003,1.55810291,33983.0,33977.0,0.14035618]
[1625584985006,1.38540453,33980.0,33977.0,0.14035618]
[1625584985118,1.38540453,33980.0,33979.0,0.24057544]
[1625584985119,1.24340453,33980.0,33979.0,0.24057544]
[1625584985240,1.3556083,33982.0,33979.0,0.24057544]
[1625584985600,0.24057544,33987.0,33979.0,0.24057544]
[1625584985601,0.24057544,33987.0,33980.0,0.00405388]
[1625584985604,1.79928236,33987.0,33980.0,0.00405388]
[1625584985841,1.55860054,33989.0,33985.0,0.33831878]
[1625584986501,1.55860054,33989.0,33988.0,3.7366]
[1625584986622,1.55838616,33990.0,33988.0,3.96222]
[1625584987102,1.79905032,33991.0,33989.0,0.48115088]
[1625584987344,0.24057544,33991.0,33989.0,0.48115088]
[1625584987764,1.79906379,33991.0,33989.0,0.48115088]
[1625584988244,0.24057544,33991.0,33989.0,0.48115088]
[1625584988906,0.69262834,33990.0,33989.0,0.48115088]
[1625584991493,1.73135981,33990.0,33989.0,0.48115088]
[1625584995156,3.289307,33990.0,33989.0,0.48115088]
[1625584995938,1.73135981,33990.0,33989.0,0.48115088]
[1625584997019,3.28929059,33990.0,33989.0,0.48115088]
[1625584998519,3.28929059,33990.0,33989.0,0.24057544]
[1625584998644,3.30427812,33990.0,33989.0,0.24057544]
[1625584998763,5.03552322,33990.0,33989.0,0.24057544]
[1625584999182,5.27609866,33990.0,33989.0,0.24057544]
[1625585000866,6.66129701,33990.0,33989.0,0.24057544]
[1625585005017,7.87396705,33990.0,33989.0,0.24057544]
[1625585005263,7.87396705,33990.0,33989.0,0.57590544]
[1625585005264,6.14272195,33990.0,33989.0,0.57590544]
[1625585005377,6.12773442,33990.0,33989.0,0.57590544]
[1625585008562,6.1427213,33990.0,33989.0,0.57590544]
[1625585009105,6.12773442,33990.0,33989.0,0.57590544]
[1625585009344,6.14272131,33990.0,33989.0,0.57590544]
[1625585014941,6.37102131,33990.0,33989.0,0.24057544]
[1625585017164,8.10324902,33990.0,33989.0,0.24057544]
[1625585018906,8.62307726,33990.0,33989.0,0.24057544]
[1625585022810,6.89084955,33990.0,33989.0,0.24057544]
[1625585024674,8.62326133,33990.0,33989.0,0.24057544]
[1625585024916,6.89084955,33990.0,33989.0,0.24057544]
[1625585025938,8.62334611,33990.0,33989.0,0.24057544]
[1625585037542,6.89084955,33990.0,33989.0,0.24057544]
[1625585037662,6.66254955,33990.0,33989.0,0.24057544]
[1625585039590,6.42197411,33990.0,33989.0,0.24057544]
[1625585039713,6.42197411,33990.0,33989.0,0.24463644]
[1625585040189,4.86404333,33990.0,33989.0,0.24463644]
[1625585040430,4.86404333,33990.0,33989.0,0.58064515]
[1625585040730,4.86404333,33990.0,33989.0,0.24463644]
[1625585041395,4.86404333,33990.0,33989.0,0.58061645]
[1625585041513,4.86404333,33990.0,33989.0,0.82119189]
[1625585042774,4.86404333,33990.0,33989.0,0.48521188]
[1625585044218,6.42434106,33990.0,33989.0,0.48521188]
[1625585046080,6.73640106,33990.0,33989.0,0.48521188]
[1625585046504,6.73640106,33990.0,33989.0,0.24057544]
[1625585046741,8.47010472,33990.0,33989.0,0.24057544]
[1625585046860,8.47010472,33990.0,33984.0,0.24057544]
[1625585046981,3.7789,33986.0,33984.0,0.24057544]
[1625585047221,6.41533881,33985.0,33984.0,0.24057544]
[1625585047341,6.43031257,33985.0,33984.0,0.24057544]
[1625585047581,6.43031257,33985.0,33984.0,0.24463236]
[1625585047703,6.91146345,33985.0,33984.0,0.24463236]
[1625585047822,6.91146345,33985.0,33984.0,0.24057544]
[1625585055331,0.55263544,33990.0,33986.0,1.2544213]
[1625585055692,0.79321088,33990.0,33989.0,0.24057544]
[1625585055810,0.48115088,33990.0,33989.0,0.24057544]
[1625585056172,0.49610389,33990.0,33989.0,0.24057544]
[1625585061636,0.82271389,33990.0,33989.0,0.24057544]
[1625585065488,2.55641495,33990.0,33989.0,0.24057544]
[1625585065728,0.82271389,33990.0,33989.0,0.24057544]
[1625585065849,0.34156301,33990.0,33989.0,0.24057544]
[1625585065968,0.01495301,33990.0,33989.0,0.24057544]
[1625585066388,0.01495133,33992.0,33989.0,0.24057544]
[1625585066689,0.01495133,33993.0,33990.0,3.8123]
[1625585066928,0.01495123,33991.0,33990.0,3.8123]
[1625585067230,0.01495115,33994.0,33990.0,3.8123]
[1625585067529,1.560117,33991.0,33990.0,3.8123]
[1625585067769,1.560117,33991.0,33990.0,4.05287544]
[1625585068012,1.5750682,33991.0,33990.0,4.05287544]
[1625585070416,2.96194076,33991.0,33990.0,4.05287544]
[1625585071017,2.94698956,33991.0,33990.0,4.05287544]
[1625585071257,2.96194156,33991.0,33990.0,4.05287544]
[1625585071798,3.202517,33991.0,33990.0,4.05287544]
[1625585072401,1.81564444,33991.0,33990.0,4.05287544]
[1625585072700,3.2026165,33991.0,33990.0,4.05287544]
[1625585074084,4.93638448,33991.0,33990.0,4.05287544]
[1625585074204,4.93638448,33991.0,33990.0,0.24057544]
[1625585074806,4.97114193,33991.0,33990.0,0.24057544]
[1625585075527,6.18499333,33991.0,33990.0,0.24057544]
[1625585075767,6.42556877,33991.0,33984.0,0.24057544]
[1625585075888,6.42556877,33991.0,33979.0,0.33811077]
[1625585076008,6.92556877,33991.0,33979.0,0.33811077]
[1625585076133,4.16186512,33980.0,33977.0,0.33835228]
[1625585076309,4.16186512,33980.0,33974.0,0.33849442]
[1625585076310,4.16058906,33978.0,33974.0,0.33849442]
[1625585076551,2.60043112,33975.0,33974.0,0.33849442]
[1625585076671,7.71973112,33975.0,33974.0,0.33849442]
[1625585076792,7.71973112,33975.0,33973.0,0.33864567]
[1625585076911,7.73473016,33975.0,33974.0,0.00405535]
[1625585077031,5.13429904,33975.0,33974.0,0.00405535]
[1625585077151,5.13429904,33975.0,33973.0,0.33864567]
[1625585077456,0.01499921,33974.0,33972.0,0.57938267]
[1625585077693,2.60057446,33973.0,33972.0,0.24057544]
[1625585077815,3.56861078,33973.0,33972.0,0.24057544]
[1625585077933,3.56861078,33973.0,33972.0,0.57945883]
[1625585078054,3.56861078,33973.0,33972.0,0.58351434]
[1625585078773,3.56861078,33973.0,33972.0,0.57945883]
[1625585079014,3.56861078,33973.0,33972.0,0.58351418]
[1625585079313,3.56861078,33973.0,33972.0,0.57945883]
[1625585079434,3.56861078,33973.0,33972.0,0.74856522]
[1625585080157,3.56861078,33973.0,33972.0,0.58351408]
[1625585080517,1.93533929,33973.0,33972.0,0.24463069]
[1625585081358,0.72172632,33973.0,33972.0,0.24463069]
[1625585081477,0.48115088,33973.0,33972.0,0.24463069]
[1625585081837,0.24057544,33973.0,33972.0,0.48520613]
[1625585081957,0.24057544,33973.0,33972.0,1.66620483]
[1625585082258,0.76041807,33973.0,33972.0,1.66620483]
[1625585082739,0.76041807,33973.0,33972.0,3.01573258]
[1625585082859,0.51984263,33973.0,33972.0,3.32453258]
[1625585083221,0.17333596,33974.0,33972.0,3.32453258]
[1625585083460,0.51983338,33975.0,33973.0,2.52893312]
[1625585083580,0.51983338,33975.0,33974.0,0.0879]
[1625585083700,0.51983338,33975.0,33974.0,2.61552458]
[1625585083822,0.51983338,33975.0,33974.0,2.86015457]
[1625585083942,0.51983338,33975.0,33974.0,1.51208813]
[1625585084181,0.34649876,33975.0,33974.0,1.51208813]
[1625585084422,1.21226816,33978.0,33974.0,1.51208813]
[1625585084966,1.21226816,33978.0,33975.0,0.00405458]
[1625585085085,1.21228075,33977.0,33975.0,0.00405458]
[1625585085326,1.2122763,33978.0,33975.0,0.00405458]
[1625585085564,1.03911538,33976.0,33975.0,1.01569127]
[1625585089900,2.25136791,33976.0,33975.0,0.00405458]
[1625585090385,1.03911538,33976.0,33975.0,0.00405458]
[1625585092365,2.25119839,33976.0,33975.0,0.00405458]
[1625585093986,1.03911538,33976.0,33975.0,0.00405458]
[1625585094468,2.2511509,33976.0,33975.0,0.00405458]
[1625585094710,1.03911538,33976.0,33975.0,0.00405458]
[1625585095849,1.03911538,33976.0,33975.0,1.01118525]
[1625585095969,1.03911538,33976.0,33975.0,1.25176069]
[1625585096089,1.03911538,33976.0,33975.0,0.24463002]
[1625585098553,2.25114512,33976.0,33975.0,0.58001014]
[1625585098913,2.25114512,33976.0,33975.0,0.74773548]
[1625585102697,2.25114512,33976.0,33975.0,0.58001014]
[1625585103057,2.25114512,33976.0,33975.0,0.24463002]
[1625585105347,2.25114512,33976.0,33975.0,0.33223002]
[1625585105830,2.26610082,33976.0,33975.0,0.33223002]
[1625585106429,3.6527363,33976.0,33975.0,0.33223002]
[1625585106908,2.26610082,33976.0,33975.0,0.33223002]
[1625585107029,2.26610082,33976.0,33975.0,0.57510002]
[1625585107689,2.25114512,33976.0,33975.0,0.57510002]
[1625585107929,2.25114512,33976.0,33975.0,1.58381132]
[1625585108832,1.03911538,33976.0,33975.0,2.76119072]
[1625585109131,0.34672495,33976.0,33975.0,4.10550666]
[1625585109431,1.03982829,33978.0,33975.0,4.10550666]
[1625585109671,0.24244212,33976.0,33975.0,0.57510002]
[1625585109794,0.24244212,33976.0,33975.0,0.57104544]
[1625585109913,0.41589029,33976.0,33975.0,4.09899063]
[1625585110032,0.41589029,33976.0,33975.0,4.10306049]
[1625585111116,0.24244212,33976.0,33975.0,4.10306049]
[1625585111356,0.41588733,33976.0,33975.0,4.10306049]
[1625585111655,0.5026962,33976.0,33975.0,4.10306049]
[1625585112496,0.26025408,33976.0,33975.0,4.10306049]
[1625585114420,0.26022879,33977.0,33975.0,4.10306049]
[1625585114719,0.26022879,33977.0,33976.0,3.5397231]
[1625585114839,0.26022879,33977.0,33976.0,3.54379234]
[1625585115380,0.26022879,33977.0,33976.0,4.2182106]
[1625585118266,0.17342811,33977.0,33976.0,4.2182106]
[1625585118747,0.69315974,33978.0,33976.0,4.2182106]
[1625585118985,0.69315974,33978.0,33977.0,4.22563606]
[1625585119105,0.69315974,33978.0,33977.0,4.22970522]
[1625585120187,0.69315974,33978.0,33977.0,4.47028066]
[1625585120733,0.69315974,33978.0,33977.0,3.11807712]
[1625585122055,0.69315974,33978.0,33977.0,3.36445712]
[1625585122894,1.73273426,33978.0,33977.0,3.36445712]
[1625585123437,1.73273426,33978.0,33977.0,3.11807712]
[1625585123679,1.73273426,33978.0,33977.0,1.93489902]
[1625585124403,2.94559489,33978.0,33977.0,1.93489902]
[1625585124523,3.19557489,33978.0,33977.0,1.93489902]
[1625585124644,3.19557489,33978.0,33977.0,0.92074637]
[1625585124765,3.19557489,33978.0,33977.0,0.91667721]
[1625585125004,3.19557489,33978.0,33977.0,0.92074683]
[1625585125974,1.98271426,33978.0,33977.0,0.92074683]
[1625585126392,3.19574958,33978.0,33977.0,0.92074683]
[1625585129463,3.19574958,33978.0,33977.0,6.03744683]
[1625585130967,3.14574958,33978.0,33977.0,6.03744683]
[1625585131749,1.55991409,33983.0,33977.0,6.03744683]
[1625585131750,1.19604135,33983.0,33977.0,6.03744683]
[1625585131871,1.19604135,33983.0,33978.0,0.0874]
[1625585131991,0.24057544,33985.0,33982.0,0.25207309]
[1625585132233,0.24057544,33985.0,33984.0,0.48115088]
[1625585132352,0.24057544,33985.0,33984.0,0.72501088]
[1625585132473,0.25553368,33985.0,33984.0,0.72501088]
[1625585133918,0.01495824,33985.0,33984.0,0.72501088]
[1625585134037,0.24057544,33989.0,33984.0,0.72501088]
[1625585134158,0.24057544,33989.0,33984.0,0.72907923]
[1625585134277,1.73360878,33994.0,33988.0,0.24057544]
[1625585134401,1.97418527,33995.0,33993.0,3.5315]
[1625585134517,1.97418527,33995.0,33993.0,3.76556]
[1625585134639,1.73356615,33996.0,33993.0,3.76556]
[1625585134878,0.01491234,33994.0,33993.0,3.76556]
[1625585135118,0.01491223,33996.0,33993.0,3.76556]
[1625585136262,0.01491223,33996.0,33995.0,0.48115088]
[1625585136503,0.01491214,33997.0,33995.0,0.48115088]
[1625585137286,1.74786096,33997.0,33995.0,0.48115088]
[1625585137647,0.01491199,33996.0,33995.0,0.48115088]
[1625585138426,1.98837983,33997.0,33995.0,0.48115088]
[1625585138666,0.01491236,33996.0,33995.0,0.48115088]
[1625585139687,1.7478135,33996.0,33995.0,0.48115088]
[1625585139929,0.01491236,33996.0,33995.0,0.48115088]
[1625585140468,1.74778012,33996.0,33995.0,0.48115088]
[1625585141796,1.74778012,33996.0,33995.0,0.24057544]
[1625585142332,1.74778012,33996.0,33988.0,0.48115088]
[1625585142333,1.98835556,33996.0,33988.0,0.48115088]
[1625585142572,1.73270392,33994.0,33988.0,0.48115088]
[1625585142691,2.06757392,33994.0,33988.0,0.48115088]
[1625585142932,4.2537,33991.0,33988.0,0.48115088]
[1625585143472,0.01491302,33990.0,33988.0,0.48115088]
[1625585143831,1.55945071,33989.0,33988.0,0.48115088]
[1625585144192,1.57436375,33989.0,33988.0,0.48115088]
[1625585144312,1.81493919,33989.0,33988.0,0.48115088]
[1625585145752,2.33483499,33989.0,33988.0,0.48115088]
[1625585146951,3.72087579,33989.0,33988.0,0.48115088]
[1625585147251,3.70596275,33989.0,33988.0,0.48115088]
[1625585147492,3.72087573,33989.0,33988.0,0.48115088]
[1625585147853,2.16142502,33989.0,33988.0,0.48115088]
[1625585149416,2.14651204,33989.0,33988.0,0.48115088]
[1625585149657,2.16142499,33989.0,33988.0,0.48115088]
[1625585149835,2.1763378,33989.0,33988.0,0.48115088]
[1625585151038,2.1763378,33989.0,33988.0,0.81494088]
[1625585152780,3.3890912,33989.0,33988.0,0.81494088]
[1625585155612,3.6833912,33989.0,33988.0,0.48115088]
[1625585155731,3.6833912,33989.0,33987.0,0.25097822]
[1625585155851,3.6833912,33989.0,33987.0,0.08361483]
[1625585156092,3.6833912,33989.0,33986.0,0.16733924]
[1625585156093,4.69335529,33988.0,33984.0,0.32433066]
[1625585156272,3.1191787,33985.0,33984.0,0.24057544]
[1625585156393,3.35975414,33985.0,33984.0,0.24057544]
[1625585156633,3.37466872,33985.0,33984.0,0.24057544]
[1625585157055,4.9342244,33985.0,33984.0,0.24057544]
[1625585157417,4.9342244,33985.0,33982.0,0.08376938]
[1625585157654,0.0149149,33984.0,33982.0,0.08376938]
[1625585157777,6.94256749,33983.0,33982.0,0.08376938]
[1625585158135,6.94256749,33983.0,33981.0,0.49198957]
[1625585158256,6.95748263,33983.0,33981.0,0.49198957]
[1625585158375,3.36031475,33982.0,33981.0,0.24057544]
[1625585158496,3.6179204,33982.0,33981.0,0.24057544]
[1625585158616,5.17772156,33982.0,33981.0,0.24057544]
[1625585161682,3.6179204,33982.0,33981.0,0.24057544]
[1625585161801,3.37734496,33982.0,33981.0,0.24057544]
[1625585161922,4.15950268,33982.0,33981.0,0.49687152]
[1625585162223,2.77300964,33982.0,33981.0,0.74878017]
[1625585162342,2.77300964,33982.0,33981.0,0.98935561]
[1625585162584,2.77300964,33982.0,33981.0,1.99798351]
[1625585162762,2.77300964,33982.0,33981.0,0.98935561]
[1625585163002,2.77300964,33982.0,33981.0,1.99812482]
[1625585163841,1.55980657,33982.0,33981.0,2.28059482]
[1625585164142,2.77306395,33982.0,33981.0,2.28059482]
[1625585164322,1.55980657,33982.0,33981.0,2.28059482]
[1625585164562,1.55980657,33982.0,33981.0,3.45801889]
[1625585172133,1.55980657,33982.0,33981.0,4.80523775]
[1625585174057,1.84502657,33982.0,33981.0,3.45801889]
[1625585174178,1.84502657,33982.0,33981.0,3.17554889]
[1625585175741,1.84502657,33982.0,33981.0,4.52263459]
[1625585175862,1.55980657,33982.0,33981.0,4.52263459]
[1625585176822,0.5200432,33982.0,33981.0,4.52263459]
[1625585178324,1.56036795,33982.0,33981.0,4.52263459]
[1625585179706,1.56036795,33982.0,33981.0,3.17554889]
[1625585183376,1.56036795,33982.0,33981.0,4.51947944]
[1625585183614,1.56036795,33982.0,33981.0,3.17554889]
[1625585183855,2.77415223,33982.0,33981.0,3.17554889]
[1625585184515,2.77415223,33982.0,33981.0,1.99812482]
[1625585184995,4.1614349,33982.0,33981.0,1.99812482]
[1625585186194,2.77415223,33982.0,33981.0,1.99812482]
[1625585186736,2.77415223,33982.0,33981.0,3.17662901]
[1625585186979,1.56036795,33982.0,33981.0,3.17662901]
[1625585187636,1.56036795,33982.0,33981.0,4.52240846]
[1625585190644,0.5200432,33982.0,33981.0,4.52240846]
[1625585191969,1.21393088,33982.0,33981.0,5.19497081]
[1625585192573,0.2522986,33983.0,33982.0,0.0887]
[1625585192692,1.14115593,33986.0,33982.0,0.0887]
[1625585192815,0.76405593,33986.0,33982.0,0.0887]
[1625585192933,0.54615593,33986.0,33982.0,0.12428461]
[1625585193053,0.17165153,33986.0,33985.0,2.25242645]
[1625585193172,1.56080171,33996.0,33985.0,2.25242645]
[1625585193293,0.08686697,33991.0,33986.0,0.0893]
[1625585193534,1.97460142,34007.0,33986.0,1.76426871]
[1625585193651,1.97460142,34007.0,33990.0,5.0597]
[1625585193773,1.97460142,34007.0,33991.0,0.0886]
[1625585193892,0.24057544,34007.0,33991.0,0.0886]
[1625585194015,0.01490701,34003.0,33991.0,0.59268391]
[1625585194257,0.01490701,34003.0,33997.0,1.0]
[1625585194495,0.01490701,34003.0,33997.0,1.22199]
[1625585194617,0.01490591,34006.0,34002.0,0.96230176]
[1625585194859,0.24057544,34007.0,34002.0,0.96230176]
[1625585195037,0.01490545,34005.0,34003.0,0.00408322]
[1625585195399,0.24057544,34007.0,34002.0,0.96230176]
[1625585195400,0.24057544,34007.0,34004.0,5.24121288]
[1625585195699,0.24057544,34007.0,34004.0,0.22465]
[1625585196600,0.24057544,34007.0,34006.0,0.24057544]
[1625585197139,4.59237544,34007.0,34006.0,0.24057544]
[1625585197981,0.24057544,34007.0,34006.0,0.24057544]
[1625585198341,0.24057544,34007.0,34006.0,0.45920544]
[1625585199063,0.24057544,34007.0,34006.0,0.54750544]
[1625585202248,1.96765866,34020.0,34006.0,0.54750544]
[1625585202249,1.72708322,34020.0,34006.0,0.54750544]
[1625585202368,1.72708322,34020.0,34006.0,1.54750544]
[1625585202488,0.2929,34041.0,34006.0,1.54750544]
[1625585202489,1.72684245,34024.0,34006.0,2.04750544]
[1625585202608,1.72684245,34024.0,34023.0,0.48115088]
[1625585202730,0.9284,34025.0,34023.0,0.96230176]
[1625585202850,0.9284,34025.0,34023.0,1.25134176]
[1625585203092,0.01490253,34024.0,34023.0,1.25134176]
[1625585203331,1.7246955,34027.0,34023.0,1.25134176]
[1625585203451,1.72468194,34028.0,34024.0,5.1672]
[1625585203692,1.72468636,34027.0,34024.0,5.1672]
[1625585203933,0.24057544,34031.0,34024.0,5.1672]
[1625585203934,1.72447223,34028.0,34024.0,5.1672]
[1625585204475,1.72443497,34030.0,34024.0,5.1672]
[1625585204719,0.24057544,34031.0,34024.0,5.1672]
[1625585204720,0.24057544,34031.0,34029.0,0.24057544]
[1625585205435,1.55011688,34030.0,34029.0,0.24057544]
[1625585207901,2.92631018,34030.0,34029.0,0.24057544]
[1625585208862,1.3761933,34030.0,34029.0,0.24057544]
[1625585209582,1.6154949,34031.0,34029.0,0.24057544]
[1625585209826,0.24057544,34031.0,34029.0,0.24057544]
[1625585210183,0.22327544,34031.0,34029.0,0.24057544]
[1625585210302,1.37469607,34032.0,34029.0,0.24057544]
[1625585210783,1.37469607,34032.0,34031.0,0.48115088]
[1625585210908,0.29757544,34042.0,34031.0,0.48115088]
[1625585210909,1.37334421,34034.0,34031.0,0.48115088]
[1625585211024,1.37334421,34034.0,34031.0,0.76515088]
[1625585211385,1.37335223,34035.0,34031.0,0.76515088]
[1625585211623,1.78556635,34038.0,34031.0,0.76515088]
[1625585211624,1.37335367,34036.0,34031.0,0.76515088]
[1625585211864,0.24057544,34038.0,34031.0,0.76515088]
[1625585211865,1.61391962,34038.0,34031.0,0.76515088]
[1625585212105,1.37334944,34037.0,34031.0,0.76515088]
[1625585212346,1.37338173,34036.0,34031.0,0.76515088]
[1625585212465,1.37338173,34036.0,34031.0,0.48115088]
[1625585212823,1.37338173,34036.0,34035.0,0.24057544]
[1625585213063,2.57391886,34036.0,34035.0,0.24057544]
[1625585213304,2.57391886,34036.0,34031.0,0.48115088]
[1625585213544,2.57391886,34036.0,34007.0,3.10679073]
[1625585213664,2.63091886,34036.0,34015.0,0.057]
[1625585213784,0.24057544,34038.0,34007.0,0.9512]
[1625585213785,1.20061208,34029.0,34007.0,0.9512]
[1625585213904,1.44044208,34029.0,34006.0,6.9063]
[1625585214264,1.20044889,34028.0,34006.0,6.9063]
[1625585214506,1.44026122,34029.0,34008.0,1.0]
[1625585214625,1.44026122,34029.0,34015.0,0.0888]
[1625585214745,0.23983,34029.0,34015.0,0.0888]
[1625585214869,0.24057544,34020.0,34019.0,0.24057544]
[1625585216488,0.49523544,34020.0,34019.0,0.24057544]
[1625585217751,0.24057544,34020.0,34019.0,0.24057544]
[1625585224427,0.24057544,34020.0,34019.0,0.56174544]
[1625585225208,0.24057544,34020.0,34019.0,0.64994544]
[1625585225328,0.24057544,34020.0,34019.0,0.56174544]
[1625585226287,0.24057544,34020.0,34019.0,0.64924544]
[1625585229292,0.21927544,34020.0,34019.0,0.64924544]
[1625585229412,0.21927544,34020.0,34019.0,0.65332758]
[1625585230255,0.20767544,34020.0,34019.0,0.65332758]
[1625585231937,0.16767544,34020.0,34019.0,0.65332758]
[1625585232661,0.10947544,34020.0,34019.0,0.65332758]
[1625585233561,0.10947544,34020.0,34019.0,0.24465758]
[1625585236632,0.10947544,34020.0,34019.0,0.33325758]
[1625585236749,0.10947544,34020.0,34019.0,0.24465758]
[1625585237468,0.39791544,34020.0,34019.0,0.24465758]
[1625585241075,0.10947544,34020.0,34019.0,0.24465758]
[1625585242816,0.10947544,34020.0,34019.0,0.33365758]
[1625585243056,0.10947544,34020.0,34019.0,0.24465758]
[1625585246066,0.10947544,34020.0,34019.0,0.33335758]
[1625585249793,0.10947544,34020.0,34019.0,0.24465758]
[1625585250998,0.36356544,34020.0,34019.0,0.24465758]
[1625585251355,0.72322229,34020.0,34019.0,0.24465758]
[1625585251474,4.82692229,34020.0,34019.0,0.24465758]
[1625585251596,4.48214469,34020.0,34019.0,0.24465758]